[Event "Titled Tuesday Blitz August 22 Early 2023"]
[White "Mostbauer, Florian"]
[Black "Young_Catalan_Player09"]
[WhiteFideId "1626671"]
[WhiteElo "2563"]
[BlackElo "2365"]
[Result "0-1"]
[Round "2"]
[TimeControl "180+1"]
[Date "2023.08.22"]
[WhiteClock "0:00:16"]
[BlackClock "0:01:21"]
[Board "170"]

1. d4 {[%clk 0:03:00]}  d5 {[%clk 0:02:59]} 2. Nf3 {[%clk 0:03:01]}  Nf6 {[%clk 0:02:59]} 3. Bf4 {[%clk 0:03:01]}  e6 {[%clk 0:02:57]} 4. e3 {[%clk 0:03:02]}  c5 {[%clk 0:02:57]} 5. c3 {[%clk 0:03:01]}  Nc6 {[%clk 0:02:58]} 6. Nbd2 {[%clk 0:03:00]}  cxd4 {[%clk 0:02:58]} 7. exd4 {[%clk 0:03:00]}  Nh5 {[%clk 0:02:57]} 8. Be3 {[%clk 0:02:54]}  Bd6 {[%clk 0:02:57]} 9. Ne5 {[%clk 0:02:54]}  g6 {[%clk 0:02:55]} 10. g4 {[%clk 0:02:54]}  Ng7 {[%clk 0:02:53]} 11. h4 {[%clk 0:02:53]}  h5 {[%clk 0:02:51]} 12. Bb5 {[%clk 0:02:53]}  Bd7 {[%clk 0:02:49]} 13. Bg5 {[%clk 0:02:44]}  Qc7 {[%clk 0:02:32]} 14. Bxc6 {[%clk 0:02:36]}  Bxc6 {[%clk 0:02:27]} 15. Bf6 {[%clk 0:02:36]}  Rg8 {[%clk 0:02:21]} 16. Qf3 {[%clk 0:01:32]}  hxg4 {[%clk 0:02:14]} 17. Nxg4 {[%clk 0:01:33]}  Nh5 {[%clk 0:02:12]} 18. Bg5 {[%clk 0:01:29]}  Be7 {[%clk 0:02:07]} 19. O-O-O {[%clk 0:01:21]}  a5 {[%clk 0:02:05]} 20. Bxe7 {[%clk 0:00:53]}  Qxe7 {[%clk 0:02:03]} 21. Ne5 {[%clk 0:00:54]}  Qf6 {[%clk 0:01:54]} 22. Qe3 {[%clk 0:00:37]}  Ke7 {[%clk 0:01:44]} 23. Ndf3 {[%clk 0:00:36]}  Qf4 {[%clk 0:01:44]} 24. Nxc6+ {[%clk 0:00:35]}  bxc6 {[%clk 0:01:44]} 25. Ne5 {[%clk 0:00:36]}  Rgc8 {[%clk 0:01:42]} 26. Rde1 {[%clk 0:00:31]}  c5 {[%clk 0:01:36]} 27. dxc5 {[%clk 0:00:29]}  Rxc5 {[%clk 0:01:36]} 28. Kc2 {[%clk 0:00:24]}  Qxe3 {[%clk 0:01:26]} 29. fxe3 {[%clk 0:00:22]}  a4 {[%clk 0:01:25]} 30. Kd3 {[%clk 0:00:21]}  a3 {[%clk 0:01:24]} 31. b3 {[%clk 0:00:21]}  Rac8 {[%clk 0:01:23]} 32. Rc1 {[%clk 0:00:21]}  Ng3 {[%clk 0:01:23]} 33. c4 {[%clk 0:00:20]}  Nxh1 {[%clk 0:01:23]} 34. Rxh1 {[%clk 0:00:19]}  dxc4+ {[%clk 0:01:23]} 35. Nxc4 {[%clk 0:00:20]}  Rd8+ {[%clk 0:01:23]} 36. Ke2 {[%clk 0:00:19]}  Rh5 {[%clk 0:01:22]} 37. Rh2 {[%clk 0:00:18]}  Rdh8 {[%clk 0:01:22]} 38. Nxa3 {[%clk 0:00:18]}  Rxh4 {[%clk 0:01:22]} 39. Rxh4 {[%clk 0:00:18]}  Rxh4 {[%clk 0:01:23]} 40. Nc4 {[%clk 0:00:16]}  Rh2+ {[%clk 0:01:23]} 41. Kd3 {[%clk 0:00:17]}  Rxa2 {[%clk 0:01:24]} 42. b4 {[%clk 0:00:17]}  f6 {[%clk 0:01:22]} 43. b5 {[%clk 0:00:18]}  Kd7 {[%clk 0:01:22]} 44. Kd4 {[%clk 0:00:18]}  g5 {[%clk 0:01:22]} 45. Kc5 {[%clk 0:00:18]}  Rc2 {[%clk 0:01:22]} 46. b6 {[%clk 0:00:17]}  g4 {[%clk 0:01:22]} 47. Kd4 {[%clk 0:00:16]}  Rxc4+ {[%clk 0:01:21]} 0-1


[Site "https://www.chess.com"]

[Event "Titled Tuesday Blitz August 22 Early 2023"]
[White "Eynullayev, Altay"]
[Black "Petrova, Irina"]
[WhiteFideId "13413562"]
[BlackFideId "14124122"]
[WhiteElo "2560"]
[BlackElo "2365"]
[Result "1-0"]
[Round "2"]
[TimeControl "180+1"]
[Date "2023.08.22"]
[WhiteClock "0:01:12"]
[BlackClock "0:01:42"]
[Board "171"]

1. d4 {[%clk 0:03:00]}  d6 {[%clk 0:03:00]} 2. Bf4 {[%clk 0:03:01]}  g6 {[%clk 0:03:00]} 3. e3 {[%clk 0:03:01]}  Bg7 {[%clk 0:03:01]} 4. Nf3 {[%clk 0:03:01]}  Nd7 {[%clk 0:03:00]} 5. h3 {[%clk 0:02:57]}  c5 {[%clk 0:03:01]} 6. c3 {[%clk 0:02:57]}  b6 {[%clk 0:03:00]} 7. Nbd2 {[%clk 0:02:56]}  Ngf6 {[%clk 0:02:58]} 8. Be2 {[%clk 0:02:57]}  Bb7 {[%clk 0:02:58]} 9. O-O {[%clk 0:02:57]}  O-O {[%clk 0:02:59]} 10. a4 {[%clk 0:02:57]}  Re8 {[%clk 0:02:58]} 11. Bh2 {[%clk 0:02:56]}  e5 {[%clk 0:02:59]} 12. dxe5 {[%clk 0:02:56]}  dxe5 {[%clk 0:03:00]} 13. Nc4 {[%clk 0:02:44]}  Ne4 {[%clk 0:02:53]} 14. a5 {[%clk 0:02:35]}  Rc8 {[%clk 0:02:50]} 15. axb6 {[%clk 0:02:23]}  axb6 {[%clk 0:02:51]} 16. Ra7 {[%clk 0:02:22]}  Bc6 {[%clk 0:02:49]} 17. Qc2 {[%clk 0:01:44]}  Ra8 {[%clk 0:02:39]} 18. Rxd7 {[%clk 0:01:37]}  Qxd7 {[%clk 0:02:36]} 19. Nxb6 {[%clk 0:01:38]}  Qb7 {[%clk 0:02:34]} 20. Nxa8 {[%clk 0:01:38]}  Rxa8 {[%clk 0:02:34]} 21. Nxe5 {[%clk 0:01:33]}  Bd5 {[%clk 0:02:15]} 22. c4 {[%clk 0:01:22]}  Be6 {[%clk 0:02:15]} 23. Bf3 {[%clk 0:01:21]}  f5 {[%clk 0:02:13]} 24. Rd1 {[%clk 0:01:16]}  Qb6 {[%clk 0:01:47]} 25. Bxe4 {[%clk 0:01:12]}  fxe4 {[%clk 0:01:46]} 26. Qxe4 {[%clk 0:01:12]}  Qxb2 {[%clk 0:01:42]} 27. Qxa8+ {[%clk 0:01:12]} 1-0


[Site "https://www.chess.com"]

[Event "Titled Tuesday Blitz August 22 Early 2023"]
[White "Topalov, Aleksandar"]
[Black "Moral Garcia, Serafin"]
[WhiteFideId "925659"]
[BlackFideId "2201925"]
[WhiteElo "2354"]
[BlackElo "2546"]
[Result "1/2-1/2"]
[Round "2"]
[TimeControl "180+1"]
[Date "2023.08.22"]
[WhiteClock "0:00:31"]
[BlackClock "0:00:40"]
[Board "173"]

1. b3 {[%clk 0:03:00]}  e5 {[%clk 0:02:59]} 2. Bb2 {[%clk 0:03:00]}  Nc6 {[%clk 0:02:59]} 3. c4 {[%clk 0:03:00]}  Nf6 {[%clk 0:02:59]} 4. e3 {[%clk 0:03:00]}  d5 {[%clk 0:02:58]} 5. cxd5 {[%clk 0:03:00]}  Nxd5 {[%clk 0:02:59]} 6. a3 {[%clk 0:03:00]}  Bd6 {[%clk 0:02:58]} 7. Qc2 {[%clk 0:03:00]}  O-O {[%clk 0:02:58]} 8. d3 {[%clk 0:03:00]}  Be6 {[%clk 0:02:55]} 9. Nf3 {[%clk 0:02:59]}  f5 {[%clk 0:02:53]} 10. Nbd2 {[%clk 0:02:58]}  Re8 {[%clk 0:02:52]} 11. g3 {[%clk 0:02:57]}  h6 {[%clk 0:02:52]} 12. Be2 {[%clk 0:02:56]}  Qd7 {[%clk 0:02:52]} 13. Nc4 {[%clk 0:02:55]}  Bf7 {[%clk 0:02:50]} 14. d4 {[%clk 0:02:53]}  e4 {[%clk 0:02:48]} 15. Nfe5 {[%clk 0:02:53]}  Bxe5 {[%clk 0:02:43]} 16. Nxe5 {[%clk 0:02:49]}  Nxe5 {[%clk 0:02:42]} 17. dxe5 {[%clk 0:02:49]}  Re6 {[%clk 0:02:38]} 18. O-O {[%clk 0:02:47]}  c6 {[%clk 0:02:36]} 19. Rfd1 {[%clk 0:02:43]}  Qe8 {[%clk 0:02:35]} 20. b4 {[%clk 0:02:39]}  Bh5 {[%clk 0:02:32]} 21. b5 {[%clk 0:02:37]}  Bxe2 {[%clk 0:02:15]} 22. Qxe2 {[%clk 0:02:35]}  Rd8 {[%clk 0:01:56]} 23. bxc6 {[%clk 0:02:29]}  Rxc6 {[%clk 0:01:56]} 24. Rac1 {[%clk 0:02:22]}  Rxc1 {[%clk 0:01:52]} 25. Rxc1 {[%clk 0:02:21]}  Qe6 {[%clk 0:01:52]} 26. Bd4 {[%clk 0:02:18]}  b6 {[%clk 0:01:52]} 27. Qb5 {[%clk 0:02:03]}  Qd7 {[%clk 0:01:37]} 28. Qc4 {[%clk 0:01:54]}  Kh7 {[%clk 0:01:35]} 29. a4 {[%clk 0:01:46]}  Ne7 {[%clk 0:01:22]} 30. Qc7 {[%clk 0:01:41]}  Kg6 {[%clk 0:01:10]} 31. e6 {[%clk 0:01:40]}  Qd6 {[%clk 0:01:11]} 32. Qxa7 {[%clk 0:01:36]}  Qxe6 {[%clk 0:01:05]} 33. Rc7 {[%clk 0:01:33]}  Kf7 {[%clk 0:00:49]} 34. Bxb6 {[%clk 0:01:09]}  Rd1+ {[%clk 0:00:48]} 35. Kg2 {[%clk 0:01:09]}  f4 {[%clk 0:00:48]} 36. exf4 {[%clk 0:00:51]}  e3 {[%clk 0:00:48]} 37. Rxe7+ {[%clk 0:00:48]}  Qxe7 {[%clk 0:00:48]} 38. Qxe7+ {[%clk 0:00:48]}  Kxe7 {[%clk 0:00:48]} 39. fxe3 {[%clk 0:00:43]}  Rd2+ {[%clk 0:00:48]} 40. Kf3 {[%clk 0:00:38]}  Rxh2 {[%clk 0:00:47]} 41. a5 {[%clk 0:00:38]}  Ra2 {[%clk 0:00:47]} 42. g4 {[%clk 0:00:37]}  g6 {[%clk 0:00:47]} 43. f5 {[%clk 0:00:34]}  gxf5 {[%clk 0:00:42]} 44. gxf5 {[%clk 0:00:34]}  h5 {[%clk 0:00:42]} 45. Kf4 {[%clk 0:00:33]}  h4 {[%clk 0:00:40]} 46. Kg4 {[%clk 0:00:34]}  Ra4+ {[%clk 0:00:40]} 47. Kh3 {[%clk 0:00:32]}  Kf6 {[%clk 0:00:40]} 48. Bd4+ {[%clk 0:00:32]}  Kxf5 {[%clk 0:00:39]} 49. Kxh4 {[%clk 0:00:32]}  Rxa5 {[%clk 0:00:39]} 50. Kg3 {[%clk 0:00:33]}  Ke4 {[%clk 0:00:40]} 51. Kg4 {[%clk 0:00:32]}  Rf5 {[%clk 0:00:39]} 52. Kg3 {[%clk 0:00:31]}  Kd3 {[%clk 0:00:38]} 53. Kg4 {[%clk 0:00:31]}  Ke4 {[%clk 0:00:38]} 54. Kg3 {[%clk 0:00:31]}  Rd5 {[%clk 0:00:38]} 55. Kg4 {[%clk 0:00:31]}  Rxd4 {[%clk 0:00:39]} 56. exd4 {[%clk 0:00:31]}  Kxd4 {[%clk 0:00:40]} 1/2-1/2


[Site "https://www.chess.com"]

[Event "Titled Tuesday Blitz August 22 Early 2023"]
[White "Lehtosaari, Mauri"]
[Black "Tanwir, Furqan"]
[WhiteFideId "501999"]
[BlackFideId "2023962"]
[WhiteElo "2522"]
[BlackElo "2349"]
[Result "1-0"]
[Round "2"]
[TimeControl "180+1"]
[Date "2023.08.22"]
[WhiteClock "0:00:34"]
[BlackClock "0:01:29"]
[Board "177"]

1. d4 {[%clk 0:03:00]}  Nf6 {[%clk 0:02:58]} 2. Nf3 {[%clk 0:03:01]}  d5 {[%clk 0:02:55]} 3. Bg5 {[%clk 0:03:01]}  e6 {[%clk 0:02:55]} 4. Nbd2 {[%clk 0:03:01]}  c6 {[%clk 0:02:55]} 5. e3 {[%clk 0:03:01]}  Nbd7 {[%clk 0:02:54]} 6. Bd3 {[%clk 0:03:02]}  Be7 {[%clk 0:02:53]} 7. c3 {[%clk 0:03:02]}  h6 {[%clk 0:02:52]} 8. Bh4 {[%clk 0:03:02]}  Qb6 {[%clk 0:02:52]} 9. Rb1 {[%clk 0:03:02]}  Nf8 {[%clk 0:02:48]} 10. Ne5 {[%clk 0:02:58]}  g5 {[%clk 0:02:48]} 11. Bg3 {[%clk 0:02:58]}  N8d7 {[%clk 0:02:44]} 12. f4 {[%clk 0:02:57]}  Nxe5 {[%clk 0:02:38]} 13. fxe5 {[%clk 0:02:56]}  Nd7 {[%clk 0:02:35]} 14. O-O {[%clk 0:02:53]}  h5 {[%clk 0:02:34]} 15. Qf3 {[%clk 0:02:47]}  f5 {[%clk 0:02:18]} 16. exf6 {[%clk 0:02:46]}  Bxf6 {[%clk 0:02:16]} 17. Bg6+ {[%clk 0:02:29]}  Ke7 {[%clk 0:02:15]} 18. Bxh5 {[%clk 0:02:26]}  Rf8 {[%clk 0:02:09]} 19. Qg4 {[%clk 0:02:08]}  e5 {[%clk 0:02:08]} 20. Bg6 {[%clk 0:01:45]}  exd4 {[%clk 0:02:03]} 21. exd4 {[%clk 0:01:40]}  Nc5 {[%clk 0:02:01]} 22. Rbe1+ {[%clk 0:01:31]}  Ne4 {[%clk 0:01:56]} 23. Qh5 {[%clk 0:01:25]}  Bxd4+ {[%clk 0:01:54]} 24. cxd4 {[%clk 0:01:14]}  Qxd4+ {[%clk 0:01:54]} 25. Kh1 {[%clk 0:01:14]}  Qxd2 {[%clk 0:01:41]} 26. Qh7+ {[%clk 0:01:13]}  Ke6 {[%clk 0:01:37]} 27. Bf5+ {[%clk 0:00:44]}  Rxf5 {[%clk 0:01:35]} 28. Qxf5+ {[%clk 0:00:42]}  Ke7 {[%clk 0:01:35]} 29. Qf8+ {[%clk 0:00:36]}  Kd7 {[%clk 0:01:29]} 30. Rf7+ {[%clk 0:00:34]} 1-0


[Site "https://www.chess.com"]

[Event "Titled Tuesday Blitz August 22 Early 2023"]
[White "Senft, Sean"]
[Black "Forgacs, Attila Jr."]
[WhiteFideId "2044960"]
[BlackFideId "773654"]
[WhiteElo "2344"]
[BlackElo "2518"]
[Result "1-0"]
[Round "2"]
[TimeControl "180+1"]
[Date "2023.08.22"]
[WhiteClock "0:00:29"]
[BlackClock "0:00:18"]
[Board "178"]

1. d4 {[%clk 0:03:00]}  Nf6 {[%clk 0:03:00]} 2. c4 {[%clk 0:03:01]}  g6 {[%clk 0:03:00]} 3. Nc3 {[%clk 0:03:01]}  d5 {[%clk 0:03:01]} 4. Bg5 {[%clk 0:03:00]}  Ne4 {[%clk 0:02:52]} 5. Bh4 {[%clk 0:03:00]}  Nxc3 {[%clk 0:02:52]} 6. bxc3 {[%clk 0:03:01]}  dxc4 {[%clk 0:02:52]} 7. e3 {[%clk 0:03:01]}  b5 {[%clk 0:02:50]} 8. a4 {[%clk 0:02:58]}  Qd5 {[%clk 0:02:06]} 9. axb5 {[%clk 0:02:52]}  Qxb5 {[%clk 0:02:06]} 10. Nf3 {[%clk 0:02:38]}  Bg7 {[%clk 0:02:00]} 11. Nd2 {[%clk 0:02:33]}  Be6 {[%clk 0:01:52]} 12. Rb1 {[%clk 0:02:19]}  Qa5 {[%clk 0:01:47]} 13. Qc2 {[%clk 0:01:56]}  Nc6 {[%clk 0:01:32]} 14. Bxc4 {[%clk 0:01:40]}  Bxc4 {[%clk 0:01:27]} 15. Nxc4 {[%clk 0:01:40]}  Qh5 {[%clk 0:01:27]} 16. Bg3 {[%clk 0:01:37]}  O-O {[%clk 0:01:23]} 17. O-O {[%clk 0:01:33]}  e5 {[%clk 0:01:14]} 18. Rb7 {[%clk 0:01:27]}  Rfc8 {[%clk 0:00:50]} 19. Qa4 {[%clk 0:01:21]}  Nd8 {[%clk 0:00:27]} 20. Rxa7 {[%clk 0:01:18]}  Rxa7 {[%clk 0:00:26]} 21. Qxa7 {[%clk 0:01:18]}  exd4 {[%clk 0:00:26]} 22. cxd4 {[%clk 0:01:14]}  Ne6 {[%clk 0:00:23]} 23. Be5 {[%clk 0:01:07]}  Qe2 {[%clk 0:00:20]} 24. Bxg7 {[%clk 0:01:06]}  Qxc4 {[%clk 0:00:19]} 25. Be5 {[%clk 0:01:02]}  c5 {[%clk 0:00:15]} 26. Qe7 {[%clk 0:00:51]}  cxd4 {[%clk 0:00:10]} 27. Qf6 {[%clk 0:00:44]}  Kf8 {[%clk 0:00:11]} 28. exd4 {[%clk 0:00:42]}  h5 {[%clk 0:00:07]} 29. h3 {[%clk 0:00:33]}  Rd8 {[%clk 0:00:07]} 30. Qh8+ {[%clk 0:00:30]}  Ke7 {[%clk 0:00:07]} 31. Bf6+ {[%clk 0:00:31]}  Kd7 {[%clk 0:00:08]} 32. Bxd8 {[%clk 0:00:31]}  Nxd8 {[%clk 0:00:09]} 33. Qf6 {[%clk 0:00:26]}  Nc6 {[%clk 0:00:07]} 34. Re1 {[%clk 0:00:20]}  Qd5 {[%clk 0:00:04]} 35. Ra1 {[%clk 0:00:18]}  Qxd4 {[%clk 0:00:04]} 36. Qxd4+ {[%clk 0:00:18]}  Nxd4 {[%clk 0:00:04]} 37. Rd1 {[%clk 0:00:19]}  Ke6 {[%clk 0:00:05]} 38. Rxd4 {[%clk 0:00:20]}  Ke5 {[%clk 0:00:06]} 39. Ra4 {[%clk 0:00:20]}  f5 {[%clk 0:00:07]} 40. Kf1 {[%clk 0:00:20]}  Kf6 {[%clk 0:00:07]} 41. Ke2 {[%clk 0:00:21]}  h4 {[%clk 0:00:07]} 42. Kf3 {[%clk 0:00:21]}  g5 {[%clk 0:00:08]} 43. g4 {[%clk 0:00:22]}  f4 {[%clk 0:00:08]} 44. Ra6+ {[%clk 0:00:21]}  Ke5 {[%clk 0:00:09]} 45. Ra5+ {[%clk 0:00:22]}  Kd4 {[%clk 0:00:10]} 46. Rxg5 {[%clk 0:00:22]}  Kd3 {[%clk 0:00:11]} 47. Kxf4 {[%clk 0:00:22]}  Ke2 {[%clk 0:00:11]} 48. Rh5 {[%clk 0:00:23]}  Kf1 {[%clk 0:00:12]} 49. Rxh4 {[%clk 0:00:23]}  Kg2 {[%clk 0:00:13]} 50. Rh5 {[%clk 0:00:24]}  Kf1 {[%clk 0:00:13]} 51. Re5 {[%clk 0:00:24]}  Kg2 {[%clk 0:00:14]} 52. g5 {[%clk 0:00:25]}  Kxh3 {[%clk 0:00:14]} 53. g6 {[%clk 0:00:25]}  Kg2 {[%clk 0:00:15]} 54. g7 {[%clk 0:00:26]}  Kf1 {[%clk 0:00:16]} 55. f3 {[%clk 0:00:26]}  Kf2 {[%clk 0:00:16]} 56. Kg4 {[%clk 0:00:27]}  Kg2 {[%clk 0:00:16]} 57. Re2+ {[%clk 0:00:26]}  Kf1 {[%clk 0:00:17]} 58. Ra2 {[%clk 0:00:27]}  Kg1 {[%clk 0:00:17]} 59. f4 {[%clk 0:00:28]}  Kh1 {[%clk 0:00:17]} 60. Kg3 {[%clk 0:00:28]}  Kg1 {[%clk 0:00:18]} 61. Ra1# {[%clk 0:00:29]} 1-0


[Site "https://www.chess.com"]

[Event "Titled Tuesday Blitz August 22 Early 2023"]
[White "Ziatdinov, Raset"]
[Black "Estrada Nieto, Julian"]
[WhiteFideId "2015323"]
[BlackFideId "5101018"]
[WhiteElo "2343"]
[BlackElo "2515"]
[Result "0-1"]
[Round "2"]
[TimeControl "180+1"]
[Date "2023.08.22"]
[WhiteClock "0:00:00"]
[BlackClock "0:00:29"]
[Board "179"]

1. e4 {[%clk 0:02:54]}  e5 {[%clk 0:02:59]} 2. Nf3 {[%clk 0:02:54]}  Nc6 {[%clk 0:03:00]} 3. Bb5 {[%clk 0:02:54]}  a6 {[%clk 0:03:00]} 4. Ba4 {[%clk 0:02:55]}  Nf6 {[%clk 0:03:00]} 5. O-O {[%clk 0:02:54]}  Be7 {[%clk 0:03:00]} 6. Re1 {[%clk 0:02:52]}  b5 {[%clk 0:03:00]} 7. Bb3 {[%clk 0:02:52]}  d6 {[%clk 0:03:01]} 8. c3 {[%clk 0:02:53]}  O-O {[%clk 0:03:01]} 9. h3 {[%clk 0:02:53]}  Bb7 {[%clk 0:03:01]} 10. d4 {[%clk 0:02:53]}  Re8 {[%clk 0:03:01]} 11. Nbd2 {[%clk 0:02:50]}  Bf8 {[%clk 0:02:59]} 12. Ng5 {[%clk 0:02:37]}  Re7 {[%clk 0:02:58]} 13. d5 {[%clk 0:02:12]}  Nb8 {[%clk 0:02:55]} 14. Nf1 {[%clk 0:02:04]}  c6 {[%clk 0:02:46]} 15. Ng3 {[%clk 0:02:01]}  cxd5 {[%clk 0:02:44]} 16. Nf5 {[%clk 0:02:01]}  Rc7 {[%clk 0:02:29]} 17. exd5 {[%clk 0:01:57]}  Nbd7 {[%clk 0:02:27]} 18. a4 {[%clk 0:01:29]}  Nc5 {[%clk 0:02:25]} 19. Bc2 {[%clk 0:01:04]}  Bxd5 {[%clk 0:02:11]} 20. Nxh7 {[%clk 0:00:46]}  Be6 {[%clk 0:01:43]} 21. Ng5 {[%clk 0:00:35]}  bxa4 {[%clk 0:01:34]} 22. Qf3 {[%clk 0:00:22]}  e4 {[%clk 0:01:18]} 23. Nxe4 {[%clk 0:00:15]}  Ncxe4 {[%clk 0:01:16]} 24. Bxe4 {[%clk 0:00:16]}  Nxe4 {[%clk 0:01:13]} 25. Rxe4 {[%clk 0:00:16]}  Bxf5 {[%clk 0:00:55]} 26. Qxf5 {[%clk 0:00:16]}  Re7 {[%clk 0:00:55]} 27. Raxa4 {[%clk 0:00:09]}  d5 {[%clk 0:00:49]} 28. Rxe7 {[%clk 0:00:09]}  Qxe7 {[%clk 0:00:47]} 29. Be3 {[%clk 0:00:09]}  Qe6 {[%clk 0:00:42]} 30. Qg5 {[%clk 0:00:06]}  Be7 {[%clk 0:00:36]} 31. Qg3 {[%clk 0:00:06]}  Bd6 {[%clk 0:00:33]} 32. Qf3 {[%clk 0:00:05]}  Rb8 {[%clk 0:00:32]} 33. Rg4 {[%clk 0:00:05]}  Rxb2 {[%clk 0:00:30]} 34. h4 {[%clk 0:00:00]}  Rb1+ {[%clk 0:00:29]} 0-1


[Site "https://www.chess.com"]

[Event "Titled Tuesday Blitz August 22 Early 2023"]
[White "Mikhaylova, Irina"]
[Black "Perez, Maximiliano"]
[WhiteFideId "4109040"]
[BlackFideId "117234"]
[WhiteElo "2340"]
[BlackElo "2514"]
[Result "0-1"]
[Round "2"]
[TimeControl "180+1"]
[Date "2023.08.22"]
[WhiteClock "0:00:15"]
[BlackClock "0:00:19"]
[Board "181"]

1. d4 {[%clk 0:02:58]}  Nf6 {[%clk 0:02:59]} 2. Nf3 {[%clk 0:02:58]}  e6 {[%clk 0:02:59]} 3. c4 {[%clk 0:02:59]}  Bb4+ {[%clk 0:02:56]} 4. Nbd2 {[%clk 0:02:59]}  d5 {[%clk 0:02:55]} 5. g3 {[%clk 0:02:57]}  O-O {[%clk 0:02:54]} 6. Bg2 {[%clk 0:02:57]}  b6 {[%clk 0:02:52]} 7. O-O {[%clk 0:02:58]}  Be7 {[%clk 0:02:37]} 8. b3 {[%clk 0:02:52]}  Bb7 {[%clk 0:02:36]} 9. Bb2 {[%clk 0:02:52]}  c6 {[%clk 0:02:36]} 10. Rc1 {[%clk 0:02:52]}  Nbd7 {[%clk 0:02:35]} 11. Qc2 {[%clk 0:02:53]}  Rc8 {[%clk 0:02:35]} 12. Rfd1 {[%clk 0:02:53]}  Qc7 {[%clk 0:02:34]} 13. e4 {[%clk 0:02:37]}  dxe4 {[%clk 0:02:33]} 14. Nxe4 {[%clk 0:02:37]}  Nxe4 {[%clk 0:02:34]} 15. Qxe4 {[%clk 0:02:37]}  Nf6 {[%clk 0:02:23]} 16. Qe5 {[%clk 0:02:20]}  Bd6 {[%clk 0:02:17]} 17. Qe2 {[%clk 0:02:20]}  Be7 {[%clk 0:02:09]} 18. Qe5 {[%clk 0:02:19]}  Bd6 {[%clk 0:01:58]} 19. Qe2 {[%clk 0:02:18]}  Qe7 {[%clk 0:01:57]} 20. Re1 {[%clk 0:01:49]}  Rfd8 {[%clk 0:01:49]} 21. Rcd1 {[%clk 0:01:48]}  Bb4 {[%clk 0:01:48]} 22. Rf1 {[%clk 0:01:47]}  Re8 {[%clk 0:01:38]} 23. Ne5 {[%clk 0:01:37]}  Ba3 {[%clk 0:01:29]} 24. Bc3 {[%clk 0:01:25]}  Red8 {[%clk 0:01:11]} 25. Ng4 {[%clk 0:01:18]}  Ne8 {[%clk 0:00:59]} 26. Ba1 {[%clk 0:01:01]}  Nd6 {[%clk 0:00:49]} 27. d5 {[%clk 0:00:54]}  cxd5 {[%clk 0:00:35]} 28. cxd5 {[%clk 0:00:54]}  Re8 {[%clk 0:00:25]} 29. dxe6 {[%clk 0:00:30]}  Bxg2 {[%clk 0:00:26]} 30. Kxg2 {[%clk 0:00:30]}  Qxe6 {[%clk 0:00:24]} 31. Qxe6 {[%clk 0:00:30]}  Rxe6 {[%clk 0:00:25]} 32. Ne3 {[%clk 0:00:30]}  Rce8 {[%clk 0:00:24]} 33. Rxd6 {[%clk 0:00:22]}  Bxd6 {[%clk 0:00:22]} 34. Nc4 {[%clk 0:00:22]}  Bc5 {[%clk 0:00:22]} 35. Bc3 {[%clk 0:00:20]}  b5 {[%clk 0:00:20]} 36. Na5 {[%clk 0:00:19]}  b4 {[%clk 0:00:20]} 37. Ba1 {[%clk 0:00:18]}  Re2 {[%clk 0:00:19]} 38. Nb7 {[%clk 0:00:18]}  Bb6 {[%clk 0:00:19]} 39. Nd6 {[%clk 0:00:17]}  Rd8 {[%clk 0:00:19]} 40. Nc4 {[%clk 0:00:16]}  Rxa2 {[%clk 0:00:19]} 41. Be5 {[%clk 0:00:17]}  h6 {[%clk 0:00:19]} 42. Bd6 {[%clk 0:00:17]}  Re8 {[%clk 0:00:18]} 43. Bxb4 {[%clk 0:00:17]}  Bd4 {[%clk 0:00:17]} 44. Bd6 {[%clk 0:00:16]}  Ree2 {[%clk 0:00:17]} 45. h4 {[%clk 0:00:14]}  Rxf2+ {[%clk 0:00:16]} 46. Rxf2 {[%clk 0:00:14]}  Rxf2+ {[%clk 0:00:16]} 47. Kh3 {[%clk 0:00:15]}  h5 {[%clk 0:00:17]} 48. g4 {[%clk 0:00:15]}  Rf3+ {[%clk 0:00:16]} 49. Kg2 {[%clk 0:00:14]}  hxg4 {[%clk 0:00:16]} 50. Na5 {[%clk 0:00:14]}  Bb6 {[%clk 0:00:15]} 51. Nc6 {[%clk 0:00:14]}  f5 {[%clk 0:00:15]} 52. Ne7+ {[%clk 0:00:14]}  Kf7 {[%clk 0:00:15]} 53. Nd5 {[%clk 0:00:15]}  Rd3 {[%clk 0:00:15]} 54. Nxb6 {[%clk 0:00:13]}  axb6 {[%clk 0:00:16]} 55. Bc7 {[%clk 0:00:13]}  Rxb3 {[%clk 0:00:16]} 56. Bf4 {[%clk 0:00:13]}  b5 {[%clk 0:00:16]} 57. Bg5 {[%clk 0:00:13]}  Rf3 {[%clk 0:00:16]} 58. h5 {[%clk 0:00:14]}  b4 {[%clk 0:00:15]} 59. h6 {[%clk 0:00:14]}  gxh6 {[%clk 0:00:16]} 60. Bxh6 {[%clk 0:00:14]}  b3 {[%clk 0:00:17]} 61. Bc1 {[%clk 0:00:14]}  Rc3 {[%clk 0:00:17]} 62. Ba3 {[%clk 0:00:15]}  Rc2+ {[%clk 0:00:18]} 63. Kg3 {[%clk 0:00:15]}  b2 {[%clk 0:00:19]} 64. Bxb2 {[%clk 0:00:16]}  Rxb2 {[%clk 0:00:20]} 65. Kf4 {[%clk 0:00:16]}  Rf2+ {[%clk 0:00:20]} 66. Kg5 {[%clk 0:00:15]}  g3 {[%clk 0:00:19]} 0-1


[Site "https://www.chess.com"]

[Event "Titled Tuesday Blitz August 22 Early 2023"]
[White "Martin Carmona, Gaston Manuel"]
[Black "Vaglio Munoz, Jaime"]
[WhiteFideId "22284567"]
[BlackFideId "6500145"]
[WhiteElo "2511"]
[BlackElo "2336"]
[Result "1-0"]
[Round "2"]
[TimeControl "180+1"]
[Date "2023.08.22"]
[WhiteClock "0:01:42"]
[BlackClock "0:01:58"]
[Board "182"]

1. e4 {[%clk 0:03:00]}  c5 {[%clk 0:02:59]} 2. Nf3 {[%clk 0:03:00]}  Qa5 {[%clk 0:03:00]} 3. c3 {[%clk 0:03:00]}  Nc6 {[%clk 0:02:59]} 4. Na3 {[%clk 0:02:58]}  Nf6 {[%clk 0:02:58]} 5. Nc4 {[%clk 0:02:56]}  Qc7 {[%clk 0:02:57]} 6. Bd3 {[%clk 0:02:53]}  b5 {[%clk 0:02:55]} 7. Ne3 {[%clk 0:02:53]}  a6 {[%clk 0:02:55]} 8. O-O {[%clk 0:02:52]}  e6 {[%clk 0:02:54]} 9. Bc2 {[%clk 0:02:49]}  c4 {[%clk 0:02:53]} 10. b3 {[%clk 0:02:45]}  d5 {[%clk 0:02:50]} 11. exd5 {[%clk 0:02:44]}  exd5 {[%clk 0:02:49]} 12. d3 {[%clk 0:02:33]}  cxb3 {[%clk 0:02:40]} 13. Bxb3 {[%clk 0:02:31]}  Be6 {[%clk 0:02:38]} 14. Ng5 {[%clk 0:02:30]}  O-O-O {[%clk 0:02:37]} 15. Nxe6 {[%clk 0:02:29]}  fxe6 {[%clk 0:02:37]} 16. a4 {[%clk 0:02:30]}  b4 {[%clk 0:02:35]} 17. cxb4 {[%clk 0:02:20]}  Bxb4 {[%clk 0:02:35]} 18. Bb2 {[%clk 0:02:20]}  Kb8 {[%clk 0:02:28]} 19. a5 {[%clk 0:02:13]}  Ka8 {[%clk 0:02:22]} 20. Ba4 {[%clk 0:02:11]}  Nxa5 {[%clk 0:02:17]} 21. Rc1 {[%clk 0:02:10]}  Qb6 {[%clk 0:02:16]} 22. Be5 {[%clk 0:01:52]}  Rc8 {[%clk 0:02:15]} 23. Qf3 {[%clk 0:01:49]}  Rhf8 {[%clk 0:02:13]} 24. Qg3 {[%clk 0:01:41]}  Rf7 {[%clk 0:02:04]} 25. Rxc8+ {[%clk 0:01:40]}  Kb7 {[%clk 0:02:04]} 26. Rb8+ {[%clk 0:01:40]}  Ka7 {[%clk 0:02:04]} 27. Rxb6 {[%clk 0:01:41]}  Kxb6 {[%clk 0:02:04]} 28. Bd4+ {[%clk 0:01:40]}  Kb7 {[%clk 0:02:04]} 29. Rb1 {[%clk 0:01:41]}  Nc6 {[%clk 0:02:00]} 30. Bxc6+ {[%clk 0:01:41]}  Kxc6 {[%clk 0:02:00]} 31. Rxb4 {[%clk 0:01:41]}  Nh5 {[%clk 0:01:59]} 32. Rb6+ {[%clk 0:01:41]}  Kd7 {[%clk 0:01:58]} 33. Qd6+ {[%clk 0:01:41]}  Ke8 {[%clk 0:01:58]} 34. Rb8# {[%clk 0:01:42]} 1-0


[Site "https://www.chess.com"]